bitfinex/quotes_SOLUSD_20220212
["timestamp","ask_amount","ask_price","bid_price","bid_amount"]
[1644630604822,38.64443616,97.669,97.591,2.38366791]
[1644630605121,15.3728,97.66,97.592,7.50466791]
[1644630605324,15.3728,97.66,97.592,2.38366791]
[1644630605520,15.3728,97.66,97.587,36.64830958]
[1644630605521,15.3728,97.66,97.593,2.38366791]
[1644630606522,15.3728,97.66,97.594,5.121]
[1644630606722,15.3728,97.66,97.588,5.121]
[1644630608925,15.3728,97.66,97.59,15.3716]
[1644630609125,15.371,97.68,97.591,5.121]
[1644630609326,15.371,97.68,97.592,5.121]
[1644630609527,15.371,97.68,97.592,7.50466791]
[1644630609825,15.371,97.68,97.593,2.38366791]
[1644630610027,37.46873655,97.679,97.594,27.9192]
[1644630610431,37.46873655,97.679,97.595,2.38366791]
[1644630610630,37.46873655,97.679,97.596,5.121]
[1644630610829,37.46873655,97.679,97.6,15.3692]
[1644630611027,37.46873655,97.679,97.602,4.53569288]
[1644630611428,37.46873655,97.679,97.602,9.65569288]
[1644630612049,37.46873655,97.679,97.602,4.53569288]
[1644630613032,51.2366,97.7,97.603,27.0]
[1644630613231,2.87393514,97.781,97.756,16.0]
[1644630613429,1.43589975,97.832,97.77,15.02]
[1644630613631,65.85050167,97.809,97.77,15.02]
[1644630613829,15.02,97.94,97.77,15.02]
[1644630614033,36.22174873,97.874,97.771,51.93674715]
[1644630614231,74.1121,97.959,97.8,203.0881]
[1644630614431,74.1121,97.959,97.81,15.02]
[1644630614631,74.1121,97.959,97.86,187.75]
[1644630614833,15.4553,97.979,97.86,202.77]
[1644630615434,15.6873,97.936,97.86,202.77]
[1644630615843,15.4553,97.979,97.86,202.77]
[1644630616238,43.4004277,97.869,97.86,202.77]
[1644630616440,15.4553,97.979,97.86,206.29078865]
[1644630618440,38.26405777,97.898,97.86,206.29078865]
[1644630618844,15.4553,97.979,97.885,0.68500607]
[1644630619043,14.4553,97.979,97.89,15.02]
[1644630619244,61.54,97.976,97.802,1.41255564]
[1644630619443,61.54,97.976,97.79,187.75]
[1644630619444,61.54,97.969,97.82,15.02]
[1644630619662,61.54,97.967,97.82,15.02]
[1644630619965,296.47179915,97.966,97.82,15.02]
[1644630620166,318.61136545,97.966,97.82,15.02]
[1644630620363,273.54086034,97.965,97.82,15.02]
[1644630620565,237.596978,97.964,97.82,15.02]
[1644630620770,15.02,97.95,97.82,15.02]
[1644630620965,39.7708902,97.949,97.82,15.02]
[1644630621466,61.9104565,97.949,97.82,15.02]
[1644630621666,61.9104565,97.949,97.821,5.108]
[1644630621865,61.9104565,97.949,97.82,15.02]
[1644630622566,59.52678859,97.949,97.82,15.02]
[1644630622766,15.3382,97.94,97.82,15.02]
[1644630624269,15.3382,97.94,97.821,0.53305605]
[1644630624472,39.7708902,97.949,97.821,0.53305605]
[1644630624473,39.7708902,97.949,97.83,187.75]
[1644630624671,39.7708902,97.949,97.84,15.02]
[1644630625271,39.7708902,97.949,97.841,5.107]
[1644630625470,39.7708902,97.949,97.84,15.02]
[1644630625873,39.7708902,97.949,97.841,5.107]
[1644630626471,15.02,97.94,97.821,5.107]
[1644630626871,44.77566094,97.929,97.821,5.107]
[1644630627172,15.02,97.92,97.81,5.108]
[1644630627371,15.02,97.92,97.801,5.109]
[1644630627671,15.02,97.92,97.801,7.49266791]
[1644630627974,15.02,97.92,97.802,20.9120923]
[1644630628172,15.02,97.92,97.803,5.109]
[1644630628375,15.02,97.92,97.803,7.49266791]
[1644630628772,15.339,97.91,97.804,2.38366791]
[1644630628973,39.85129844,97.909,97.803,5.109]
[1644630631281,39.85129844,97.909,97.8,15.3379]
[1644630631480,15.3397,97.9,97.794,5.109]
[1644630631685,15.3397,97.9,97.791,5.109]
[1644630631686,15.02,97.89,97.791,5.109]
[1644630632279,44.28369768,97.889,97.791,5.109]
[1644630633080,15.343,97.88,97.79,23.4481]
[1644630633281,15.02,97.87,97.79,23.4481]
[1644630633483,15.02,97.87,97.774,5.11]
[1644630633681,2.38366791,97.869,97.774,5.11]
[1644630633881,15.02,97.87,97.774,5.11]
[1644630634082,47.48687668,97.869,97.774,5.11]
[1644630634282,15.3456,97.86,97.761,5.111]
[1644630634484,15.02,97.85,97.761,5.111]
[1644630634684,15.02,97.85,97.757,5.112]
[1644630634883,15.02,97.85,97.745,5.112]
[1644630635085,2.38366791,97.849,97.739,1.41255564]
[1644630635285,187.75,97.84,97.74,5.112]
[1644630635484,15.02,97.83,97.74,5.112]
[1644630635686,45.05908493,97.829,97.74,5.112]
[1644630635885,45.05908493,97.829,97.742,1.41255564]
[1644630635886,15.3531,97.81,97.742,1.41255564]
[1644630636087,15.02,97.8,97.736,5.113]
[1644630636283,15.02,97.8,97.734,1.41255564]
[1644630636486,15.02,97.8,97.736,1.41255564]
[1644630637085,15.02,97.8,97.737,5.114]
[1644630637287,15.02,97.8,97.731,25.95155564]
[1644630637487,15.02,97.8,97.732,5.114]
[1644630637987,15.02,97.8,97.743,1.41255564]
[1644630638310,37.07766908,97.809,97.751,1.41255564]
[1644630638487,37.07766908,97.809,97.745,4.36998511]
[1644630638488,37.07766908,97.809,97.769,1.41255564]
[1644630638690,37.07766908,97.809,97.773,1.41255564]
[1644630638891,12.28,97.85,97.773,1.41255564]
[1644630639188,12.28,97.85,97.772,1.41255564]
[1644630639487,12.28,97.85,97.768,1.41255564]
[1644630639689,27.6273,97.85,97.78,1.41255564]
[1644630639886,34.29049456,97.849,97.774,1.41255564]
[1644630640287,34.29049456,97.849,97.745,23.0681]
[1644630640288,11.868775,97.848,97.773,1.41255564]
[1644630640488,19.38318691,97.848,97.77,1.41255564]
[1644630640689,2.38366791,97.847,97.768,1.41255564]
[1644630640890,2.38366791,97.847,97.746,10.91811358]
[1644630640891,2.38366791,97.847,97.769,1.41255564]
[1644630641689,15.3497,97.83,97.798,1.41255564]
[1644630641890,12.28,97.82,97.799,1.41255564]
[1644630642289,12.28,97.82,97.797,1.41255564]
[1644630642490,35.1326471,97.829,97.797,1.41255564]
[1644630642690,35.1326471,97.829,97.799,1.41255564]
[1644630642891,35.1326471,97.829,97.816,1.41255564]
[1644630643089,35.1326471,97.829,97.818,1.41255564]
[1644630644090,35.1326471,97.829,97.817,1.41255564]
[1644630645090,35.1326471,97.829,97.816,1.41255564]
[1644630645591,35.1326471,97.829,97.817,1.41255564]
[1644630645993,34.62268182,97.829,97.817,1.41255564]
[1644630646594,34.62268182,97.829,97.818,1.41255564]
[1644630646995,34.62268182,97.829,97.82,1.41255564]
[1644630647295,15.3447,97.86,97.82,1.41255564]
[1644630647494,15.3447,97.86,97.823,1.41255564]
[1644630647695,15.3447,97.86,97.825,1.41255564]
[1644630648096,15.3447,97.86,97.826,1.41255564]
[1644630648296,39.36177039,97.859,97.826,1.41255564]
[1644630648695,39.36177039,97.859,97.827,1.41255564]
[1644630649606,39.36177039,97.859,97.829,1.41255564]
[1644630649999,39.36177039,97.859,97.837,1.41255564]
[1644630650401,39.36177039,97.859,97.831,1.41255564]
[1644630651203,39.36177039,97.859,97.829,1.41255564]
[1644630651802,39.36177039,97.859,97.828,1.41255564]
[1644630652402,39.36177039,97.859,97.83,1.41255564]
[1644630652803,39.36177039,97.859,97.829,1.41255564]
[1644630653203,39.36177039,97.859,97.832,1.41255564]
[1644630654006,39.36177039,97.859,97.831,1.41255564]
[1644630654604,39.36177039,97.859,97.837,1.41255564]
[1644630655806,15.3452,97.85,97.837,1.41255564]
[1644630656005,29.0,97.849,97.783,5.80427281]
[1644630656206,29.0,97.849,97.782,48.0863]
[1644630656405,29.0,97.849,97.783,5.80499554]
[1644630657111,29.0,97.849,97.784,5.111]
[1644630657405,29.0,97.849,97.785,5.80499554]
[1644630657605,15.3469,97.84,97.785,5.80499554]
[1644630657804,40.88227545,97.839,97.786,5.111]
[1644630658004,40.88227545,97.839,97.784,5.80499554]
[1644630658205,40.88227545,97.839,97.787,5.80499554]
[1644630658405,40.88227545,97.839,97.785,5.80499554]
[1644630658604,40.88227545,97.839,97.788,10.91599554]
[1644630658805,40.88227545,97.839,97.789,5.80499554]
[1644630662509,40.88227545,97.839,97.784,5.80499554]
[1644630662810,40.88227545,97.839,97.785,5.111]
[1644630663009,40.88227545,97.839,97.786,5.80499554]
[1644630663309,40.88227545,97.839,97.787,5.111]
[1644630663509,40.88227545,97.839,97.788,5.80499554]
[1644630663708,40.88227545,97.839,97.783,6.7338419]
[1644630663709,40.88227545,97.839,97.784,5.80499554]
[1644630664910,40.88227545,97.839,97.785,5.111]
[1644630665209,40.88227545,97.839,97.786,5.80499554]
[1644630665410,40.88227545,97.839,97.783,5.80499554]
[1644630667112,40.88227545,97.839,97.783,10.91599554]
[1644630667314,40.88227545,97.839,97.784,5.80499554]
[1644630667814,40.88227545,97.839,97.783,5.111]
[1644630668011,40.88227545,97.839,97.784,5.80471406]
[1644630668211,15.3475,97.83,97.76,15.3475]
[1644630668613,15.3475,97.83,97.761,5.80526172]
[1644630668814,0.41800349,120.19,97.761,8.18892963]
[1644630668815,12.28,97.88,97.761,8.18892963]
[1644630669011,27.3381,97.91,97.77,12.28]
[1644630669213,27.3381,97.91,97.78,15.3439]
[1644630669214,15.3414,97.87,97.78,15.3439]
[1644630669512,15.3414,97.87,97.781,53.46246172]
[1644630669713,12.28,97.89,97.781,53.46246172]
[1644630669714,43.21533027,97.869,97.782,33.49454269]
[1644630670112,43.21533027,97.869,97.781,47.6572]
[1644630670312,15.344,97.86,97.781,47.6572]
[1644630670512,12.28,97.85,97.781,47.6572]
[1644630670712,12.28,97.85,97.782,5.111]
[1644630671011,12.28,97.85,97.783,34.92377513]
[1644630671012,45.53266536,97.849,97.783,34.92377513]
[1644630671411,15.343,97.86,97.784,5.111]
[1644630671613,2.38366791,97.888,97.784,5.111]
[1644630671614,2.38366791,97.888,97.784,7.49466791]
[1644630671818,12.28,97.91,97.785,8.18682988]
[1644630672012,11.24928572,97.939,97.785,8.18682988]
[1644630672013,12.28,97.92,97.786,10.91216197]
[1644630672212,12.28,97.92,97.787,5.80316197]
[1644630672415,37.88088531,97.908,97.788,5.109]
[1644630672613,27.6181,97.9,97.79,15.3427]
[1644630672814,27.6181,97.9,97.791,5.109]
[1644630673013,27.6181,97.9,97.79,15.3427]
[1644630673213,8.59371255,97.899,97.791,5.11]
[1644630673616,8.59371255,97.898,97.791,5.11]
[1644630674017,8.59371255,97.897,97.791,5.11]
[1644630674416,2.38366791,97.896,97.791,5.11]
[1644630674616,8.59371255,97.896,97.791,5.11]
[1644630674818,15.3432,97.87,97.791,5.11]
[1644630675019,15.3432,97.87,97.785,24.7995]
[1644630675216,2.38366791,97.869,97.785,24.7995]
[1644630675840,40.27665183,97.868,97.785,24.7995]
[1644630676819,43.74212081,97.849,97.785,24.7995]
[1644630680327,43.74212081,97.849,97.786,5.111]
[1644630681629,43.74212081,97.849,97.79,15.3427]
[1644630681829,43.74212081,97.849,97.791,5.111]
[1644630682031,43.74212081,97.849,97.792,1.29399475]
[1644630682230,12.28,97.89,97.793,5.111]
[1644630682432,77.298,97.938,97.794,29.26067504]
[1644630682632,12.28,97.91,97.795,10.91187504]
[1644630682829,12.28,97.91,97.796,5.80287504]
[1644630683030,12.28,97.91,97.797,5.109]
[1644630683230,38.23895563,97.909,97.798,5.80287504]
[1644630683653,38.23895563,97.909,97.799,5.109]
[1644630683853,47.40956975,97.889,97.8,21.14387504]
[1644630684055,47.40956975,97.889,97.801,5.80287504]
[1644630684652,47.40956975,97.889,97.797,5.80287504]
[1644630684853,47.40956975,97.889,97.796,5.109]
[1644630685053,47.40956975,97.889,97.798,5.80270395]
[1644630685257,47.40956975,97.889,97.797,5.80270395]
[1644630685653,15.3396,97.88,97.797,5.80270395]
[1644630685856,15.3396,97.88,97.796,5.109]
[1644630686057,2.38366791,97.879,97.798,5.11]
[1644630686353,2.38366791,97.879,97.794,23.4578]
[1644630686553,2.38366791,97.879,97.795,5.11]
[1644630686754,15.3444,97.86,97.795,5.11]
[1644630686954,46.29232284,97.859,97.79,15.3428]
[1644630687161,46.29232284,97.859,97.791,5.111]
[1644630687957,2.38366791,97.879,97.8,15.3411]
[1644630688157,2.38366791,97.879,97.801,24.7087]
[1644630688357,2.38366791,97.879,97.801,29.8187]
[1644630688957,12.28,97.91,97.802,7.44800997]
[1644630688958,46.756544,97.878,97.802,7.44800997]
[1644630689159,46.756544,97.878,97.803,5.109]
[1644630689758,46.756544,97.878,97.81,15.339]
[1644630689960,46.756544,97.878,97.811,5.11]
[1644630690564,46.756544,97.878,97.803,5.11]
[1644630691462,46.756544,97.878,97.82,15.3382]
[1644630692162,46.756544,97.878,97.801,24.7087]
[1644630692866,46.756544,97.878,97.81,15.3398]
[1644630694163,46.756544,97.878,97.81,23.91972876]
[1644630694769,46.756544,97.878,97.81,15.3398]
[1644630695069,15.3412,97.87,97.801,24.7087]
[1644630696173,30.0812,97.87,97.801,24.7087]
[1644630706986,30.0812,97.87,97.803,30.49062375]
[1644630708187,30.0812,97.87,97.804,5.11]
[1644630708391,30.0812,97.87,97.801,24.7087]
[1644630718128,30.0812,97.87,97.802,5.11]
[1644630722934,30.0812,97.87,97.801,24.7087]
[1644630724133,2.38366791,97.869,97.782,2.8222129]
[1644630724334,15.349,97.85,97.774,2.8222129]
[1644630724638,14.74,97.84,97.773,5.11]
[1644630725039,2.38366791,97.839,97.773,5.11]
[1644630725235,34.42891914,97.838,97.773,5.11]
[1644630725641,2.38366791,97.837,97.773,5.11]
[1644630725838,41.51216692,97.819,97.773,5.11]
[1644630727239,41.51216692,97.819,97.757,5.112]
[1644630727838,15.3511,97.81,97.757,5.112]
[1644630732445,15.3511,97.81,97.756,47.3945]
[1644630733346,15.3511,97.81,97.757,5.113]
[1644630734150,15.3511,97.81,97.756,47.3945]
[1644630734848,30.0911,97.81,97.756,47.3945]
[1644630735047,30.0911,97.81,97.744,5.113]
[1644630735247,2.38366791,97.809,97.744,5.113]
[1644630735447,15.3571,97.79,97.744,5.113]
[1644630735647,14.74,97.78,97.744,5.113]
[1644630736069,14.74,97.78,97.721,5.114]
[1644630736270,43.23770252,97.779,97.721,5.114]
[1644630736472,43.23770252,97.779,97.72,0.024]
[1644630736772,15.3574,97.77,97.72,0.024]
[1644630736970,15.3574,97.77,97.712,5.115]
[1644630737571,15.3574,97.77,97.711,47.9601]
[1644630739376,15.3574,97.77,97.712,5.115]
[1644630740675,17.74106791,97.77,97.711,47.9601]
[1644630741477,15.3574,97.77,97.711,47.9601]
[1644630743385,14.74,97.79,97.712,5.115]
[1644630743586,245.2,97.864,97.712,5.115]
[1644630743587,30.4288,97.84,97.712,13.30569694]
[1644630743786,14.74,97.84,97.719,2.8222129]
[1644630743985,14.74,97.84,97.73,2.8222129]
[1644630744188,40.72698425,97.839,97.734,2.8222129]
[1644630744388,40.72698425,97.839,97.735,5.113]
[1644630745285,40.72698425,97.839,97.736,5.80587606]
[1644630745687,15.3479,97.83,97.74,15.3495]
[1644630746891,30.0879,97.83,97.735,5.113]
[1644630748290,30.0879,97.83,97.732,5.113]
[1644630748492,30.0879,97.83,97.733,5.80609471]
[1644630750092,30.0879,97.83,97.74,15.3503]
[1644630750293,30.0879,97.83,97.741,5.80609471]
[1644630750694,30.0879,97.83,97.742,5.113]
[1644630750897,30.0879,97.83,97.744,36.08559558]
[1644630751394,30.0879,97.83,97.745,5.80609471]
[1644630751595,30.0879,97.83,97.746,5.113]
[1644630751796,30.0879,97.83,97.75,15.3492]
[1644630752294,30.0879,97.83,97.751,5.112]
[1644630753294,15.3479,97.83,97.76,15.3473]
[1644630753494,15.3479,97.83,97.761,29.9838]
[1644630753694,15.3479,97.83,97.762,5.80511989]
[1644630753894,15.3479,97.83,97.762,10.91711989]
[1644630754297,47.27924787,97.829,97.763,13.11584484]
[1644630754494,47.27924787,97.829,97.77,15.3459]
[1644630754699,47.27924787,97.829,97.771,5.112]
[1644630756098,47.27924787,97.829,97.78,15.3444]
[1644630756298,15.3452,97.84,97.78,15.3444]
[1644630756499,15.3436,97.85,97.78,15.3444]
[1644630757402,35.4123733,97.849,97.78,15.3444]
[1644630757599,35.4123733,97.849,97.781,5.111]
[1644630758000,35.4123733,97.849,97.782,23.2531]
[1644630760905,15.345,97.84,97.782,23.2531]
[1644630762006,35.4123733,97.849,97.782,23.2531]
[1644630763232,35.4123733,97.849,97.783,5.111]
[1644630763633,15.345,97.84,97.782,23.2531]
[1644630766737,15.345,97.84,97.783,5.111]
[1644630766935,15.345,97.84,97.782,23.2531]
[1644630772946,14.6192716,97.887,97.782,23.2531]
[1644630772947,15.3434,97.85,97.79,15.3427]
[1644630773143,15.3434,97.85,97.791,5.111]
[1644630773546,184.24,97.92,97.791,5.111]
[1644630773745,2.89407986,97.95,97.783,5.111]
[1644630773746,14.74,97.9,97.783,5.111]
[1644630773947,35.18964274,97.889,97.793,31.14938988]
[1644630774150,35.18964274,97.889,97.794,5.11]
[1644630774347,35.18964274,97.889,97.794,7.49366791]
[1644630774548,35.18964274,97.889,97.794,5.11]
[1644630774749,35.18964274,97.889,97.8,15.341]
[1644630774949,35.18964274,97.889,97.801,10.91268889]
[1644630775150,35.18964274,97.889,97.802,5.80268889]
[1644630775348,15.3388,97.88,97.803,5.11]
[1644630775550,15.3388,97.88,97.793,31.14938988]
[1644630775747,15.3388,97.88,97.794,30.0914]
[1644630775948,15.3388,97.88,97.813,1.41243262]
[1644630776151,15.3388,97.88,97.795,5.80286682]
[1644630776152,15.3388,97.88,97.818,1.41243262]
[1644630776352,15.3388,97.88,97.812,1.41243262]
[1644630776748,15.3388,97.88,97.811,26.39383262]
[1644630776949,15.3388,97.88,97.816,1.41243262]
[1644630777350,15.3388,97.88,97.817,1.41243262]
[1644630777849,15.3388,97.88,97.816,1.41243262]
[1644630778053,15.3388,97.88,97.811,24.9814]
[1644630778054,245.2,97.861,97.814,1.41243262]
[1644630778250,15.3441,97.86,97.799,1.41243262]
[1644630778450,15.3441,97.86,97.793,1.41243262]
[1644630778650,15.3441,97.86,97.789,1.41243262]
[1644630778849,26.0,97.852,97.776,1.52343262]
[1644630779050,26.0,97.852,97.776,5.111]
[1644630779250,245.2,97.853,97.78,15.3445]
[1644630779453,245.2,97.858,97.781,10.91456493]
[1644630779650,245.2,97.858,97.781,5.80356493]
[1644630779852,245.2,97.858,97.782,5.111]
[1644630780053,3.603,97.857,97.783,5.80356493]
[1644630780250,245.2,97.856,97.784,5.111]
[1644630780450,245.2,97.856,97.779,42.2489053]
[1644630780451,3.604,97.855,97.79,15.3419]
[1644630780654,65.883,97.88,97.791,5.80292238]
[1644630780655,245.2,97.859,97.791,5.80292238]
[1644630780880,245.2,97.878,97.791,33.46282238]
[1644630781056,245.2,97.873,97.792,5.80292238]
[1644630781253,3.613,97.877,97.792,5.80292238]
[1644630781453,34.28476234,97.871,97.792,5.80292238]
[1644630781657,3.617,97.87,97.81,15.3377]
[1644630782453,34.28476234,97.871,97.81,15.3377]
[1644630783257,15.3403,97.87,97.792,5.11]
[1644630783453,245.2,97.862,97.793,5.80289746]
[1644630783654,3.58,97.861,97.791,22.5489]
[1644630784458,2.38366791,97.86,97.791,22.5489]
[1644630784657,245.2,97.856,97.791,22.5489]
[1644630784956,15.344,97.85,97.791,22.5489]
[1644630785359,35.23701541,97.849,97.791,22.5489]
[1644630785760,30.23701541,97.849,97.791,22.5489]
[1644630786857,15.3448,97.84,97.791,22.5489]
[1644630788264,3.593,97.839,97.778,2.8222129]
[1644630788483,3.593,97.839,97.76,15.3701]
[1644630788484,15.3464,97.83,97.779,5.80420139]
[1644630788686,3.59,97.829,97.779,5.80420139]
[1644630788883,15.3464,97.83,97.775,44.6115677]
[1644630789084,15.3464,97.83,97.775,49.7235677]
[1644630789285,245.2,97.844,97.776,5.8043199]
[1644630789583,245.2,97.847,97.777,24.1421]
[1644630789785,245.2,97.858,97.777,29.2531]
[1644630789983,245.2,97.858,97.778,5.8043199]
[1644630790184,248.779,97.869,97.779,5.111]
[1644630790385,47.62105885,97.868,97.783,2.8222129]
[1644630790587,47.62105885,97.868,97.784,7.9332129]
[1644630790790,47.62105885,97.868,97.801,3.78475283]
[1644630790985,47.62105885,97.868,97.802,28.0651]
[1644630791886,47.62105885,97.868,97.803,5.80276438]
[1644630792087,47.62105885,97.868,97.804,5.11]
[1644630792488,47.62105885,97.868,97.803,5.11]
[1644630792788,47.62105885,97.868,97.81,15.3386]
[1644630792988,47.62105885,97.868,97.811,5.11]
[1644630793187,47.62105885,97.868,97.804,5.11]
[1644630793391,245.2,97.869,97.803,5.11]
[1644630793589,245.2,97.879,97.805,5.80233083]
[1644630793789,245.2,97.879,97.806,5.11]
[1644630793991,245.2,97.879,97.807,5.80233083]
[1644630794190,245.2,97.879,97.805,5.11]
[1644630794493,45.2366855,97.878,97.806,5.80233083]
[1644630794790,45.2366855,97.878,97.82,15.3379]
[1644630796894,15.3402,97.87,97.807,5.109]
[1644630798496,15.3402,97.87,97.806,24.0345]
[1644630798706,15.3417,97.86,97.806,24.0345]
[1644630799897,15.3417,97.86,97.807,44.97613057]
[1644630800298,245.2,97.865,97.81,15.3393]
[1644630800497,245.2,97.869,97.81,15.3393]
[1644630801203,45.1551426,97.868,97.81,15.3393]
[1644630801398,245.2,97.863,97.81,15.3393]
[1644630801598,245.2,97.867,97.81,15.3393]
[1644630804101,3.595,97.866,97.81,15.3393]
[1644630806603,245.2,97.85,97.81,15.3393]
[1644630806804,245.2,97.865,97.81,15.3393]
[1644630807004,3.593,97.865,97.81,15.3393]
[1644630807211,245.2,97.866,97.81,15.3393]
[1644630807505,245.2,97.867,97.81,15.3393]
[1644630807705,248.792,97.867,97.81,15.3393]
[1644630810414,245.2,97.867,97.81,15.3393]
[1644630812810,3.595,97.866,97.81,15.3393]
[1644630813611,245.2,97.852,97.81,15.3393]
[1644630813810,245.2,97.843,97.81,15.3393]
[1644630814010,245.2,97.852,97.81,15.3393]
[1644630815215,245.2,97.868,97.81,15.3393]
[1644630815414,3.594,97.867,97.81,15.3393]
[1644630815914,51.17596996,97.867,97.81,15.3393]
[1644630816114,3.594,97.867,97.81,15.3393]
[1644630817115,47.97196979,97.866,97.81,15.3393]
[1644630817414,3.593,97.865,97.81,15.3393]
[1644630818915,47.97196979,97.866,97.81,15.3393]
[1644630819115,245.2,97.85,97.81,15.3393]
[1644630819318,245.2,97.865,97.81,15.3393]
[1644630820419,3.596,97.864,97.81,15.3393]
[1644630820619,3.596,97.864,97.806,24.0345]
[1644630821924,245.2,97.865,97.806,24.0345]
[1644630822322,15.3417,97.86,97.806,24.0345]
[1644630822524,245.2,97.847,97.806,24.0345]
[1644630827232,245.2,97.85,97.806,24.0345]
[1644630828330,245.2,97.851,97.806,24.0345]
[1644630833258,245.2,97.858,97.806,24.0345]
[1644630833458,3.594,97.857,97.806,24.0345]
[1644630833658,245.2,97.83,97.806,24.0345]
[1644630833858,245.2,97.856,97.802,22.9551]
[1644630834061,3.593,97.856,97.802,22.9551]
[1644630834259,3.592,97.857,97.802,22.9551]
[1644630834460,245.2,97.829,97.803,5.80328081]
[1644630834765,245.2,97.856,97.803,5.80328081]
[1644630834961,3.59,97.856,97.803,5.80328081]
[1644630835159,3.589,97.857,97.803,5.80328081]
[1644630839169,245.2,97.825,97.803,5.80328081]
[1644630839467,245.2,97.856,97.803,5.80328081]
[1644630839666,245.2,97.858,97.81,15.3396]
[1644630839868,3.6,97.879,97.811,5.80328081]
[1644630839869,245.2,97.878,97.811,5.80328081]
[1644630840069,3.605,97.877,97.811,5.80328081]
[1644630840272,3.605,97.877,97.808,5.80328081]
[1644630840469,245.2,97.834,97.808,5.11]
[1644630840668,245.2,97.875,97.809,5.80328081]
[1644630840869,248.816,97.875,97.809,5.80328081]
[1644630841068,248.816,97.875,97.81,5.11]
[1644630841469,248.816,97.875,97.811,5.80328081]
[1644630841873,248.816,97.875,97.82,15.3376]
[1644630842071,248.816,97.875,97.821,24.5632]
[1644630844476,245.2,97.875,97.821,24.5632]
[1644630847477,3.595,97.874,97.821,24.5632]
[1644630853087,15.3404,97.87,97.807,5.109]
[1644630853287,245.2,97.816,97.79,0.024]
[1644630853487,245.2,97.816,97.786,2.8222129]
[1644630853488,245.2,97.794,97.777,2.8222129]
[1644630853687,245.2,97.849,97.795,9.02524887]
[1644630853888,248.796,97.849,97.795,9.02524887]
[1644630854091,47.63340779,97.848,97.795,46.16729029]
[1644630854289,245.2,97.821,97.796,5.111]
[1644630854488,245.2,97.847,97.796,5.111]
[1644630855289,245.2,97.847,97.796,28.38]
[1644630855492,15.3448,97.84,97.796,5.111]
[1644630855690,245.2,97.802,97.796,5.111]
[1644630855905,3.595,97.839,97.796,5.111]
[1644630858413,3.595,97.839,97.795,9.02524887]
[1644630859116,248.795,97.839,97.795,9.02524887]
[1644630859716,245.2,97.839,97.795,9.02524887]
[1644630862818,3.595,97.838,97.795,9.02524887]
[1644630863016,248.795,97.838,97.795,9.02524887]
[1644630864615,245.2,97.838,97.795,9.02524887]
[1644630865618,15.3463,97.83,97.795,9.02524887]
[1644630865819,260.5463,97.83,97.795,9.02524887]
[1644630866219,37.13445865,97.829,97.795,9.02524887]
[1644630866417,282.33445865,97.829,97.795,9.02524887]
[1644630879441,3.595,97.828,97.795,9.02524887]
[1644630881340,248.795,97.828,97.795,9.02524887]
[1644630882041,245.2,97.828,97.795,9.02524887]
[1644630883141,248.795,97.828,97.795,9.02524887]
[1644630884342,245.2,97.828,97.795,9.02524887]
[1644630892568,15.3482,97.82,97.795,9.02524887]
[1644630893571,260.5482,97.82,97.783,5.111]
[1644630893772,15.3499,97.81,97.765,2.8222129]
[1644630893971,15.3499,97.81,97.71,14.74]
[1644630893972,15.3499,97.81,97.751,2.8222129]
[1644630894172,15.3499,97.81,97.748,2.8222129]
[1644630894173,3.593,97.809,97.748,2.8222129]
[1644630894373,245.2,97.809,97.748,2.8222129]
[1644630894572,43.43379245,97.808,97.747,2.8222129]
[1644630894771,288.63379245,97.808,97.746,2.8222129]